bitfinex/quotes_SOLUSD_20250714
["timestamp","ask_amount","ask_price","bid_price","bid_amount"]
[1752519619489,7.74863855,162.58,162.56,32.28]
[1752519619698,14.29930591,162.59,162.56,32.94]
[1752519619868,7.31951961,162.59,162.56,32.94]
[1752519620186,14.29930591,162.59,162.56,32.94]
[1752519620590,6.9797863,162.58,162.56,32.94]
[1752519622173,13.13084729,162.58,162.56,32.94]
[1752519622668,13.13084729,162.58,162.54,0.1]
[1752519622669,149.06889954,162.57,162.54,0.1]
[1752519622994,148.29999999,162.57,162.55,0.66]
[1752519623178,148.29999999,162.57,162.54,0.1]
[1752519623370,148.29999999,162.57,162.54,0.76]
[1752519623692,6.9797863,162.56,162.54,0.1]
[1752519623872,0.76894685,162.56,162.54,0.1]
[1752519624068,155.27978629,162.57,162.54,0.76]
[1752519624268,6.92057283,162.56,162.54,0.76]
[1752519624484,13.90035913,162.56,162.54,0.1]
[1752519625971,13.13173954,162.55,162.54,0.1]
[1752519628198,13.19173954,162.55,162.54,0.1]
[1752519628492,13.96073369,162.55,162.54,0.1]
[1752519630787,13.96073369,162.55,162.54,1e-08]
[1752519631008,6.98094739,162.55,162.54,1e-08]
[1752519631210,7.74878045,162.55,162.54,1e-08]
[1752519631504,13.96073369,162.55,162.54,1e-08]
[1752519632174,13.90073369,162.55,162.54,1e-08]
[1752519632378,13.96073369,162.55,162.54,1e-08]
[1752519633190,23.76563136,162.55,162.54,1e-08]
[1752519633411,26.0,162.48,162.43,0.27900677]
[1752519633700,6.9797863,162.46,162.43,0.98900677]
[1752519634002,7.7491591,162.47,162.44,0.71]
[1752519634217,13.90423273,162.47,162.45,0.71]
[1752519634503,6.9797863,162.46,162.43,33.24900677]
[1752519634901,6.9797863,162.46,162.44,0.71]
[1752519635197,6.9797863,162.46,162.43,32.53900677]
[1752519635198,0.76946752,162.45,162.43,32.53900677]
[1752519635388,0.76946752,162.45,162.44,0.71]
[1752519635787,0.76923076,162.5,162.44,7.6897863]
[1752519635995,6.92308596,162.5,162.46,6.9797863]
[1752519636201,6.9797863,162.48,162.46,0.71]
[1752519636382,7.7490644,162.49,162.46,0.71]
[1752519636581,0.7692781,162.49,162.47,0.71]
[1752519637182,0.7692781,162.49,162.48,0.71]
[1752519637387,0.76923076,162.5,162.48,0.71]
[1752519637800,0.76923076,162.5,162.46,0.71]
[1752519637801,7.74901706,162.5,162.46,0.71]
[1752519638000,6.9797863,162.49,162.46,32.97]
[1752519638177,6.92398551,162.48,162.46,32.97]
[1752519639104,6.92398551,162.48,162.46,32.26]
[1752519639294,0.76932545,162.48,162.46,32.97]
[1752519639488,0.5,162.47,162.46,32.26]
[1752519639695,0.5,162.47,162.46,45.39514761]
[1752519640097,0.5,162.47,162.43,0.27900677]
[1752519640098,2.2146,162.47,162.43,0.27900677]
[1752519640298,6.9797863,162.45,162.43,0.27900677]
[1752519640591,1.2693728,162.47,162.44,0.71]
[1752519640912,6.9797863,162.45,162.44,0.71]
[1752519641094,6.9797863,162.45,162.43,0.27900677]
[1752519641286,13.90542037,162.44,162.43,0.27900677]
[1752519641487,13.96542037,162.44,162.43,0.27900677]
[1752519642294,13.90542037,162.44,162.43,0.27900677]
[1752519642713,7.74920646,162.46,162.43,0.98900677]
[1752519642915,7.74920646,162.46,162.44,0.71]
[1752519643316,6.9797863,162.45,162.44,0.71]
[1752519643520,7.74920646,162.46,162.44,0.71]
[1752519643693,7.74911175,162.48,162.45,0.71]
[1752519644104,6.9797863,162.47,162.45,0.71]
[1752519644725,0.5,162.46,162.45,0.71]
[1752519645030,1.26942016,162.46,162.43,32.53900677]
[1752519645330,8.24920646,162.46,162.43,33.24900677]
[1752519645630,8.24920646,162.46,162.44,0.71]
[1752519646495,6.9797863,162.45,162.43,32.53900677]
[1752519646693,0.76942016,162.46,162.45,6.1321]
[1752519646913,9.35460575,162.53,162.46,26.0]
[1752519647116,0.06,162.55,162.53,6.1321]
[1752519647320,0.76552956,162.59,162.54,39.2397863]
[1752519647506,0.76552956,162.59,162.58,6.9797863]
[1752519647711,0.76552956,162.65,162.58,39.2397863]
[1752519647931,0.76552956,162.65,162.59,6.9797863]
[1752519648131,0.76552956,162.65,162.64,6.9797863]
[1752519648354,2.49,162.65,162.59,0.71]
[1752519648507,2.49,162.65,162.6,32.26]
[1752519648710,2.49,162.65,162.63,6.9797863]
[1752519648928,2.49,162.65,162.64,39.2397863]
[1752519649144,2.49,162.65,162.64,43.89780347]
[1752519649315,2.49,162.65,162.64,44.60780347]
[1752519649511,2.49,162.65,162.64,50.75635241]
[1752519650031,0.06,162.68,162.64,73.03087965]
[1752519650232,0.06,162.68,162.67,11.63780347]
[1752519650435,0.06,162.68,162.67,12.25254497]
[1752519650802,0.06,162.68,162.67,12.96254497]
[1752519651327,0.06,162.68,162.67,12.34780347]
[1752519651535,0.06,162.68,162.67,18.49521848]
[1752519652115,0.06,162.68,162.67,0.71]
[1752519652320,0.06,162.68,162.67,50.73521848]
[1752519652909,0.06,162.68,162.67,51.34995998]
[1752519653621,0.06,162.68,162.67,39.71215651]
[1752519653920,0.06,162.68,162.67,51.34995998]
[1752519654513,0.06,162.68,162.67,51.32995998]
[1752519654905,0.06,162.68,162.64,13.0513439]
[1752519655113,0.06,162.68,162.65,32.93]
[1752519655512,0.06,162.68,162.67,11.63780347]
[1752519655717,0.06,162.68,162.67,17.78521848]
[1752519655949,0.06,162.68,162.67,18.49521848]
[1752519656821,0.06,162.68,162.67,61.27990245]
[1752519658431,0.2,162.72,162.67,61.27990245]
[1752519658432,0.2,162.72,162.67,76.64843997]
[1752519658619,0.2,162.72,162.71,11.63780347]
[1752519659022,0.2,162.72,162.71,44.55780347]
[1752519659816,0.2,162.72,162.71,51.31829759]
[1752519660935,0.2,162.72,162.71,50.70370722]
[1752519661140,0.2,162.72,162.71,6.14590375]
[1752519661343,0.2,162.72,162.68,0.72]
[1752519661549,12.49780347,162.72,162.69,32.2]
[1752519662037,0.2,162.72,162.69,32.2]
[1752519662244,0.2,162.72,162.71,11.63780347]
[1752519662449,0.2,162.72,162.71,43.83780347]
[1752519662619,0.2,162.72,162.71,44.55780347]
[1752519663539,0.2,162.72,162.71,61.95707781]
[1752519663730,0.06,162.74,162.72,22.93021002]
[1752519663935,0.06,162.74,162.73,44.45231831]
[1752519664137,0.06,162.74,162.73,45.17231831]
[1752519665137,0.06,162.74,162.73,61.95700228]
[1752519665849,0.06,162.74,162.73,68.10215068]
[1752519666043,0.2,162.78,162.74,16.78468397]
[1752519666247,0.2,162.78,162.77,11.63780347]
[1752519666552,0.2,162.78,162.77,43.83780347]
[1752519666755,0.2,162.78,162.77,44.55780347]
[1752519667828,0.2,162.78,162.77,50.70144173]
[1752519668652,0.2,162.78,162.77,39.06363826]
[1752519668946,0.2,162.78,162.77,50.70144173]
[1752519672048,0.2,162.78,162.77,67.4861257]
[1752519672223,0.2,162.78,162.77,93.4861257]
[1752519672426,0.2,162.78,162.77,22.92832223]
[1752519672739,0.2,162.78,162.77,49.96144173]
[1752519673930,0.2,162.78,162.77,93.4661257]
[1752519675450,0.2,162.78,162.77,61.2861257]
[1752519675757,0.2,162.78,162.77,93.4461257]
[1752519675948,0.2,162.78,162.77,67.4461257]
[1752519676655,1e-08,162.78,162.77,67.4461257]
[1752519677052,1e-08,162.79,162.77,67.4461257]
[1752519677262,1e-08,162.79,162.78,47.53787783]
[1752519677440,0.06,162.81,162.8,49.27560694]
[1752519677640,0.06,162.81,162.8,81.43560694]
[1752519677834,0.06,162.81,162.8,82.76985755]
[1752519678635,0.2,162.86,162.85,16.78468397]
[1752519678950,0.2,162.86,162.85,61.27654946]
[1752519679132,0.2,162.86,162.85,50.35874599]
[1752519679335,0.2,162.86,162.85,68.13716966]
[1752519679757,1e-08,162.86,162.85,68.13716966]
[1752519680754,1e-08,162.86,162.85,67.41716966]
[1752519681152,1e-08,162.86,162.85,68.13716966]
[1752519684464,1e-08,162.86,162.85,68.11716966]
[1752519684870,1e-08,162.86,162.85,94.11716966]
[1752519685441,1e-08,162.86,162.85,82.47936619]
[1752519685654,1e-08,162.86,162.85,87.97654946]
[1752519685862,1e-08,162.86,162.85,94.11716966]
[1752519689056,1e-08,162.86,162.85,55.03654946]
[1752519689244,1e-08,162.86,162.85,61.19654946]
[1752519689448,1e-08,162.86,162.85,32.16]
[1752519689651,1e-08,162.86,162.85,43.79780347]
[1752519689861,1e-08,162.86,162.85,32.16]
[1752519690045,0.65000001,162.86,162.85,32.16]
[1752519690252,1e-08,162.86,162.85,43.81780347]
[1752519691558,1e-08,162.86,162.85,11.63780347]
[1752519691761,1e-08,162.86,162.85,43.79780347]
[1752519691957,0.65000001,162.86,162.82,16.78468397]
[1752519692176,0.65,162.85,162.81,11.63780347]
[1752519692358,0.65,162.84,162.82,32.16]
[1752519692556,2.23050001,162.86,162.82,43.79780347]
[1752519693847,0.65,162.85,162.83,32.14]
[1752519694076,8.48639855,162.86,162.84,32.14]
[1752519694250,19.35867246,162.86,162.84,32.14]
[1752519694447,1.58050001,162.86,162.84,32.14]
[1752519694647,1.58050001,162.86,162.84,43.77780347]
[1752519694858,1e-08,162.86,162.84,43.77780347]
[1752519696577,1e-08,162.86,162.84,32.14]
[1752519696763,1e-08,162.86,162.84,43.77780347]
[1752519697168,1e-08,162.86,162.85,12.35780347]
[1752519697480,1e-08,162.86,162.85,29.14248744]
[1752519698186,1e-08,162.86,162.85,35.28310764]
[1752519699366,1e-08,162.86,162.85,28.42248744]
[1752519699774,1e-08,162.86,162.85,34.56310764]
[1752519700557,1e-08,162.86,162.85,35.28310764]
[1752519704571,1e-08,162.86,162.85,32.14]
[1752519705495,0.29000001,162.86,162.85,32.14]
[1752519705881,1e-08,162.86,162.85,32.14]
[1752519706082,1e-08,162.86,162.85,43.77780347]
[1752519706478,1e-08,162.86,162.85,32.14]
[1752519706681,1e-08,162.86,162.85,38.2806202]
[1752519707087,1e-08,162.86,162.85,49.91842367]
[1752519707696,1e-08,162.86,162.85,50.63842367]
[1752519708570,1e-08,162.86,162.85,49.91842367]
[1752519708918,1e-08,162.86,162.85,11.63780347]
[1752519709073,0.65000001,162.86,162.85,32.14]
[1752519710474,1e-08,162.86,162.85,32.14]
[1752519713495,12.28780348,162.86,162.85,32.14]
[1752519713708,1e-08,162.86,162.85,32.14]
[1752519714775,1e-08,162.86,162.85,50.63842367]
[1752519714981,1e-08,162.86,162.85,67.42310764]
[1752519715904,1e-08,162.87,162.86,16.78468397]
[1752519716104,1e-08,162.88,162.87,42.78468397]
[1752519716300,0.06,162.91,162.87,42.78468397]
[1752519716301,0.06,162.91,162.9,42.78468397]
[1752519716608,0.06,162.91,162.9,98.20029091]
[1752519716801,0.06,162.91,162.9,98.92029091]
[1752519717302,1e-08,162.91,162.9,98.92029091]
[1752519718009,0.2,162.95,162.93,26.0]
[1752519718310,0.2,162.95,162.93,76.52916908]
[1752519718612,0.2,162.95,162.94,16.78468397]
[1752519718810,0.2,162.95,162.94,29.11248744]
[1752519719912,0.06,162.98,162.97,28.42248744]
[1752519720096,0.06,162.98,162.97,60.56248744]
[1752519720296,0.06,162.98,162.97,67.3885861]
[1752519720608,0.06,162.98,162.97,68.00219596]
[1752519721126,0.06,162.98,162.97,67.31219596]
[1752519721291,0.06,162.98,162.97,68.00219596]
[1752519721897,0.06,162.98,162.97,56.36439249]
[1752519722114,0.06,162.98,162.97,68.00219596]
[1752519724324,0.06,162.98,162.97,67.31219596]
[1752519725313,1e-08,162.98,162.97,68.00219596]
[1752519727023,0.2,163.0,162.99,42.78468397]
[1752519727220,0.2,163.0,162.99,87.15602201]
[1752519727415,0.2,163.01,163.0,42.78468397]
[1752519727723,0.2,163.05,163.02,42.78468397]
[1752519727924,0.2,163.05,163.02,87.1559091]
[1752519728220,0.2,163.05,163.02,87.8459091]
[1752519728527,0.2,163.05,163.03,16.78468397]
[1752519728822,0.2,163.05,163.04,67.28929803]
[1752519729126,0.2,163.05,163.04,67.97929803]
[1752519729721,0.2,163.05,163.04,93.97929803]
[1752519729926,0.2,163.08,163.04,109.31295848]
[1752519730227,0.2,163.08,163.07,11.63780347]
[1752519730424,0.2,163.08,163.07,43.75780347]
[1752519730926,12.52780347,163.08,163.01,15.33608557]
[1752519731102,0.69,163.07,163.03,11.63780347]
[1752519731302,0.69,163.06,163.04,32.1]
[1752519731825,15.65976718,163.08,163.04,32.1]
[1752519732017,11.63780347,163.07,163.05,32.1]
[1752519732409,11.63780347,163.06,163.0,6.13471171]
[1752519732598,2.29712956,163.07,163.01,32.1]
[1752519732599,11.63780347,163.05,163.01,32.1]
[1752519732930,11.63780347,163.05,163.01,38.23437559]
[1752519733230,8.63780347,163.05,163.01,38.23437559]
[1752519733730,11.63780347,163.06,163.01,49.87217906]
[1752519734097,11.78780347,163.06,163.01,49.87217906]
[1752519734333,11.78780347,163.05,163.01,38.23437559]
[1752519734519,11.78780347,163.04,163.01,38.23437559]
[1752519734833,11.78780347,163.03,163.01,32.1]
[1752519735245,11.78780347,163.02,162.98,26.0]
[1752519735400,11.78780347,163.01,162.99,32.1]
[1752519735601,11.78780347,163.01,163.0,32.1]
[1752519736335,1.41552956,163.04,163.0,32.1]
[1752519736538,0.65,163.04,163.0,32.1]
[1752519736720,0.15,163.03,163.0,32.1]
[1752519736918,11.78780347,163.03,163.0,32.1]
[1752519737731,12.13780347,163.04,163.0,38.23491782]
[1752519738417,11.78780347,163.03,163.0,38.23491782]
[1752519738736,11.78780347,163.03,163.0,32.1]
[1752519740215,11.63780347,163.03,163.0,32.1]
[1752519740619,11.78780347,163.03,163.0,32.1]
[1752519741618,0.5,163.02,163.0,32.1]
[1752519743544,0.5,163.02,163.0,38.2349307]
[1752519744013,0.5,163.02,163.0,38.9249307]
[1752519744207,0.5,163.02,163.0,50.56273417]
[1752519744412,0.5,163.02,163.0,38.2349307]
[1752519744927,0.5,163.02,163.01,32.1]
[1752519747449,0.5,163.02,163.01,38.23459296]
[1752519748445,0.5,163.02,163.01,38.92459296]
[1752519749146,0.5,163.02,163.01,45.87583521]
[1752519749935,0.5,163.02,163.01,38.92459296]
[1752519750320,0.5,163.02,163.01,45.87583521]
[1752519751623,0.5,163.02,163.01,38.23459296]
[1752519751826,0.5,163.02,163.01,38.90459296]
[1752519752347,0.5,163.02,163.01,38.23459296]
[1752519752554,0.5,163.02,163.01,32.1]
[1752519753448,0.5,163.02,163.01,38.23459296]
[1752519754256,0.5,163.02,163.01,38.90459296]
[1752519754461,0.5,163.02,163.01,45.85583521]
[1752519754845,0.5,163.02,163.01,38.90459296]
[1752519755160,0.5,163.02,163.01,45.85583521]
[1752519755534,0.56,163.05,163.01,103.9770016]
[1752519755726,0.06,163.05,163.04,6.95124225]
[1752519755931,0.06,163.05,163.04,39.05124225]
[1752519756238,0.06,163.05,163.04,89.45716847]
[1752519756443,0.06,163.05,163.04,82.50592622]
[1752519757049,0.06,163.05,163.04,89.45716847]
[1752519757250,1e-08,163.05,163.04,89.45716847]
[1752519757456,1e-08,163.05,163.04,95.59063265]
[1752519761168,0.5,163.13,163.1,6.95124225]
[1752519761370,0.5,163.13,163.11,32.08]
[1752519762062,6.95124225,163.14,163.11,38.21072353]
[1752519762472,6.95124225,163.14,163.11,32.08]
[1752519763370,1.07132957,163.15,163.11,38.2107971]
[1752519763595,8.02257182,163.15,163.11,38.2107971]
[1752519763867,7.71677181,163.15,163.11,38.2107971]
[1752519764057,7.71677181,163.15,163.11,45.16203935]
[1752519764257,6.95124225,163.15,163.11,45.16203935]
[1752519764478,6.95124225,163.15,163.11,38.2107971]
[1752519764779,6.95124225,163.15,163.11,6.1307971]
[1752519764954,6.95124225,163.12,163.06,22.91739585]
[1752519765152,6.95124225,163.11,163.07,32.08]
[1752519765573,6.95124225,163.12,163.07,39.70124225]
[1752519765972,6.95124225,163.12,163.08,6.13195977]
[1752519766285,6.95124225,163.12,163.09,32.08]
[1752519766855,6.89547021,163.14,163.09,32.08]
[1752519767161,6.95124225,163.12,163.09,32.08]
[1752519768056,0.76552956,163.14,163.09,38.21137036]
[1752519768258,6.95124225,163.13,163.09,38.21137036]
[1752519768457,6.95124225,163.13,163.09,45.16261261]
[1752519768657,6.95124225,163.13,163.09,45.83261261]
[1752519768859,0.76552956,163.14,163.09,45.83261261]
[1752519769176,6.95124225,163.13,163.09,45.83261261]
[1752519769675,6.95124225,163.13,163.09,38.88137036]
[1752519771274,0.76552956,163.15,163.1,7.62124225]
[1752519771468,26.0,163.16,163.12,6.95124225]
[1752519771469,0.76552956,163.16,163.12,6.95124225]
[1752519771669,0.76552956,163.16,163.13,32.06]
[1752519772155,7.71677181,163.16,163.13,38.18996048]
[1752519772357,7.01124225,163.15,163.13,32.06]
[1752519772569,7.01124225,163.15,163.13,38.19004708]
[1752519772756,0.06,163.15,163.13,38.19004708]
[1752519773149,0.06,163.15,163.13,38.86004708]
[1752519773554,0.06,163.15,163.14,13.75094679]
[1752519778656,0.06,163.15,163.14,31.14860121]
[1752519779361,0.06,163.15,163.14,32.71260121]
[1752519780358,1e-08,163.15,163.14,32.71260121]
[1752519782070,1e-08,163.15,163.14,44.69621186]
[1752519783387,1e-08,163.15,163.14,37.74496961]
[1752519783595,1e-08,163.15,163.14,44.69621186]
[1752519785177,0.1,163.22,163.14,44.69621186]
[1752519785178,0.3,163.22,163.17,26.0]
[1752519785498,0.3,163.22,163.21,6.95124225]
[1752519785658,0.3,163.22,163.21,38.99124225]
[1752519785659,0.1,163.22,163.21,38.99124225]
[1752519785857,0.1,163.22,163.21,39.65124225]
[1752519786257,0.1,163.22,163.21,56.43592622]
[1752519786466,0.1,163.22,163.21,62.56300176]
[1752519786666,0.1,163.22,163.21,63.17570931]
[1752519786990,0.1,163.22,163.21,38.16707554]
[1752519787191,7.81677181,163.22,163.16,0.66]
[1752519787398,7.81677181,163.22,163.14,1.564]
[1752519787399,6.95124225,163.19,163.15,13.08057108]
[1752519787687,0.2,163.21,163.16,39.63124225]
[1752519787905,0.2,163.21,163.19,6.95124225]
[1752519788066,0.1,163.22,163.2,38.97124225]
[1752519788272,0.1,163.22,163.21,6.95124225]
[1752519788470,0.1,163.22,163.21,13.73831779]
[1752519788788,0.1,163.22,163.21,30.52300176]
[1752519788973,0.1,163.22,163.21,56.52300176]
[1752519789157,1e-08,163.22,163.21,56.52300176]
[1752519789364,0.1,163.23,163.22,16.78468397]
[1752519789578,0.1,163.23,163.22,56.36859623]
[1752519789776,0.1,163.23,163.22,57.02859623]
[1752519789992,7.81661085,163.32,163.25,26.0]
[1752519790172,0.8653686,163.32,163.27,6.95124225]
[1752519790367,0.8653686,163.32,163.28,32.02]
[1752519790576,7.81661085,163.32,163.28,38.14436465]
[1752519790778,13.93963195,163.32,163.28,32.02]
[1752519790975,7.81661085,163.32,163.28,32.02]
[1752519791199,7.05124225,163.32,163.28,38.14431393]
[1752519791371,13.17420418,163.32,163.28,32.02]
[1752519791576,7.05124225,163.32,163.28,32.02]
[1752519791785,0.1,163.32,163.28,38.14442112]
[1752519791989,0.1,163.32,163.28,32.02]
[1752519792193,0.1,163.32,163.28,38.97124225]
[1752519792575,13.17422157,163.32,163.28,38.97124225]
[1752519792773,6.22297932,163.32,163.28,38.97124225]
[1752519792972,0.1,163.32,163.28,32.02]
[1752519793196,0.1,163.32,163.29,7.61124225]
[1752519793395,0.1,163.32,163.31,6.95124225]
[1752519793913,0.1,163.32,163.3,32.68]
[1752519793914,0.1,163.32,163.3,32.02]
[1752519794901,6.95124225,163.31,163.26,0.66]
[1752519795197,6.22295125,163.32,163.27,32.0]
[1752519795198,6.95124225,163.3,163.27,32.0]
[1752519795611,6.95124225,163.29,163.27,32.0]
[1752519795906,6.95124225,163.29,163.28,32.0]
[1752519796578,7.71675146,163.29,163.28,32.0]
[1752519796780,13.84082519,163.29,163.28,32.0]
[1752519797182,15.39702519,163.29,163.2,13.73859872]
[1752519797402,6.95124225,163.24,163.21,32.0]
[1752519797611,6.95124225,163.25,163.21,39.61124225]
[1752519797907,6.95124225,163.26,163.22,0.66]
[1752519798229,6.95124225,163.25,163.23,32.0]
[1752519798814,6.95124225,163.26,163.23,32.0]
[1752519798998,7.71677181,163.26,163.23,32.0]
[1752519799522,6.95124225,163.25,163.23,32.0]
[1752519801201,6.89090535,163.26,163.23,32.0]
[1752519801400,6.95124225,163.25,163.23,32.0]
[1752519801825,6.89090535,163.26,163.23,32.0]
[1752519802124,6.95124225,163.25,163.23,32.0]
[1752519802524,6.12562052,163.25,163.23,32.0]
[1752519802732,7.91677181,163.24,163.18,26.66]
[1752519802904,0.96552956,163.24,163.19,32.66]
[1752519803106,6.95124225,163.23,163.2,0.66]
[1752519803305,6.95124225,163.23,163.21,32.0]
[1752519803513,6.95124225,163.22,163.21,32.0]
[1752519803808,6.95124225,163.22,163.18,26.0]
[1752519804025,6.95124225,163.21,163.19,32.0]
[1752519804224,13.07838768,163.21,163.19,32.0]
[1752519804723,6.95124225,163.21,163.19,32.0]
[1752519804925,13.84353044,163.22,163.2,32.0]
[1752519806329,7.71677181,163.22,163.2,32.0]
[1752519806520,0.2,163.23,163.2,32.66]
[1752519807026,13.27756784,163.23,163.2,32.66]
[1752519807226,7.15124225,163.23,163.2,32.66]
[1752519807732,13.27757965,163.23,163.2,32.66]
[1752519808232,6.95124225,163.21,163.2,32.0]
[1752519809223,6.95124225,163.22,163.2,32.0]
[1752519809623,0.2,163.21,163.2,32.68]
[1752519811431,0.2,163.21,163.2,32.0]
[1752519813524,0.2,163.21,163.2,32.68]
[1752519813725,0.2,163.21,163.2,45.75869323]
[1752519814038,0.2,163.21,163.2,32.68]
[1752519814523,0.2,163.21,163.2,32.0]
[1752519815218,7.15124225,163.21,163.2,32.0]
[1752519815744,6.95124225,163.21,163.2,32.0]
[1752519816322,0.76552956,163.24,163.2,32.0]
[1752519816323,6.95124225,163.22,163.2,32.0]
[1752519816540,7.71677181,163.22,163.2,32.0]
[1752519816738,0.76552956,163.22,163.2,32.0]
[1752519816938,7.71677181,163.22,163.2,32.0]
[1752519817143,6.95124225,163.22,163.2,32.0]
[1752519817331,7.77677181,163.24,163.21,0.68]
[1752519817546,7.77677181,163.24,163.22,31.98]
[1752519817836,6.95124225,163.23,163.22,31.98]
[1752519818241,7.77677181,163.24,163.22,31.98]
[1752519819844,6.95124225,163.23,163.22,31.98]
[1752519820046,7.77677181,163.24,163.22,31.98]
[1752519820631,13.90274727,163.24,163.22,31.98]
[1752519820947,7.77677181,163.24,163.22,31.98]
[1752519821155,13.90273718,163.24,163.22,31.98]
[1752519821339,7.77677181,163.24,163.22,31.98]
[1752519821644,0.2,163.23,163.22,31.98]
[1752519821857,7.15124225,163.23,163.22,31.98]
[1752519823032,0.2,163.23,163.22,31.98]
[1752519823450,7.15124225,163.23,163.22,31.98]
[1752519824238,0.2,163.21,163.19,0.03]
[1752519824420,7.71677181,163.2,163.19,0.03]
[1752519824620,0.96552956,163.21,163.19,32.01]
[1752519824830,6.95124225,163.2,163.19,32.01]
[1752519825031,6.95124225,163.2,163.19,0.03]
[1752519826643,13.07869323,163.2,163.19,0.03]
[1752519826944,6.89273292,163.21,163.19,0.03]
[1752519827133,6.95124225,163.2,163.19,0.03]
[1752519828152,0.76552956,163.21,163.19,0.71]
[1752519828352,7.71677181,163.21,163.2,31.98]
[1752519828532,13.84384735,163.21,163.2,31.98]
[1752519828852,13.84384735,163.21,163.19,0.03]
[1752519829054,6.95124225,163.2,163.19,0.03]
[1752519830459,7.71677181,163.21,163.19,0.03]
[1752519830751,7.71677181,163.21,163.19,0.71]
[1752519831177,0.76552956,163.21,163.19,0.71]
[1752519831345,0.76552956,163.21,163.2,0.68]
[1752519831751,147.9,163.22,163.2,0.68]
[1752519831952,147.9,163.22,163.21,32.66]
[1752519832866,147.9,163.22,163.21,31.98]
[1752519833250,147.9,163.22,163.21,38.10707554]
[1752519833561,147.9,163.22,163.21,38.78707554]
[1752519835168,147.9,163.22,163.21,32.66]
[1752519835463,147.9,163.22,163.21,31.98]
[1752519837272,154.85124225,163.22,163.19,0.71]
[1752519837565,154.85124225,163.22,163.2,31.96]
[1752519838567,147.9,163.22,163.2,31.96]
[1752519838744,147.9,163.22,163.2,32.62]
[1752519839673,154.85124225,163.22,163.2,32.62]
[1752519839973,154.85124225,163.22,163.2,31.96]
[1752519840360,147.9,163.22,163.2,31.96]
[1752519840678,154.85124225,163.22,163.2,31.96]
[1752519842248,0.2,163.21,163.2,32.62]
[1752519842775,0.06,163.24,163.2,32.62]
[1752519843073,0.82552956,163.24,163.21,7.61124225]
[1752519843377,0.82552956,163.24,163.22,32.62]
[1752519843853,0.06,163.24,163.22,31.96]
[1752519844052,0.06,163.24,163.23,0.66]
[1752519847049,0.06,163.24,163.23,13.73756706]
[1752519847268,0.06,163.24,163.23,32.6]
[1752519848976,0.06,163.24,163.23,45.67756706]
[1752519849358,147.9,163.28,163.23,45.67756706]
[1752519849558,0.2,163.27,163.26,6.95124225]
[1752519849760,0.2,163.27,163.26,38.89124225]
[1752519849976,0.2,163.27,163.26,39.55124225]
[1752519850670,0.2,163.27,163.26,32.6]
[1752519850981,0.2,163.27,163.26,38.72519906]
[1752519851392,0.2,163.27,163.26,45.67644131]
[1752519854689,7.21124225,163.27,163.21,1.5903]
[1752519854999,6.95124225,163.22,163.2,0.66]
[1752519855291,7.71677181,163.21,163.19,0.03]
[1752519855501,6.95124225,163.2,163.19,0.03]
[1752519855797,6.95124225,163.2,163.19,31.95]
[1752519856292,0.76552956,163.21,163.19,31.95]
[1752519856293,6.95124225,163.21,163.19,31.95]
[1752519856474,6.95124225,163.22,163.19,32.61]
[1752519856675,6.95124225,163.23,163.2,0.66]
[1752519856878,6.95124225,163.23,163.21,31.94]
[1752519857072,6.95124225,163.23,163.21,32.6]
[1752519857472,14.04273567,163.24,163.21,32.6]
[1752519857995,6.95124225,163.23,163.21,31.94]
[1752519858193,13.07761044,163.23,163.21,31.94]
[1752519858397,6.95124225,163.23,163.21,31.94]
[1752519859290,6.95124225,163.23,163.21,32.6]